bitfinex/quotes_SOLUSD_20241208
["timestamp","ask_amount","ask_price","bid_price","bid_amount"]
[1733672390033,0.12549,236.73,236.7,8.23464701]
[1733672390643,0.12549,236.73,236.61,20.0]
[1733672390972,0.12549,236.72,236.67,8.23464701]
[1733672391456,0.12549,236.72,236.68,8.23464701]
[1733672392537,0.12549,236.72,236.69,8.23464701]
[1733672393670,0.12549,236.72,236.61,20.0]
[1733672393671,9.77739996,236.78,236.71,8.23464701]
[1733672393961,20.0,236.75,236.72,8.23464701]
[1733672394638,0.12549,236.75,236.72,8.23464701]
[1733672394864,0.12549,236.75,236.73,8.23464701]
[1733672395039,23.902374,236.75,236.73,8.23464701]
[1733672396091,23.902374,236.75,236.72,8.23464701]
[1733672396845,23.902374,236.75,236.66,1.6088]
[1733672396846,23.902374,236.75,236.71,8.23464701]
[1733672398273,23.902374,236.75,236.72,8.23464701]
[1733672399771,23.902374,236.75,236.71,8.23464701]
[1733672399998,23.902374,236.75,236.72,8.23464701]
[1733672400175,23.902374,236.75,236.71,8.23464701]
[1733672400371,23.902374,236.75,236.72,8.23464701]
[1733672400682,23.902374,236.77,236.74,8.23464701]
[1733672401476,0.12549,236.76,236.74,8.23464701]
[1733672401869,0.12549,236.76,236.75,8.23464701]
[1733672402299,3.167,236.82,236.75,8.23464701]
[1733672402486,20.0,236.81,236.78,8.23464701]
[1733672402911,23.167,236.82,236.78,8.23464701]
[1733672403079,3.167,236.82,236.78,8.23464701]
[1733672403497,3.167,236.82,236.79,8.23464701]
[1733672403888,0.25098,236.81,236.78,8.23464701]
[1733672404210,3.167,236.82,236.79,8.23464701]
[1733672404573,0.12549,236.81,236.79,8.23464701]
[1733672404814,3.1664,236.86,236.8,8.23464701]
[1733672405020,3.1664,236.86,236.81,8.23464701]
[1733672405670,0.12549,236.85,236.81,8.23464701]
[1733672407170,3.1658,236.91,236.84,8.23464701]
[1733672407414,3.1658,236.91,236.77,0.63336971]
[1733672407618,8.72686391,236.95,236.88,8.23464701]
[1733672407907,11.89206391,236.95,236.89,8.23464701]
[1733672408216,0.25098,236.94,236.9,8.23464701]
[1733672408371,3.6574169,236.95,236.9,8.23464701]
[1733672408907,24.153354,236.94,236.91,8.23464701]
[1733672409212,0.4922169,236.95,236.93,8.23464701]
[1733672409430,0.4922169,236.95,236.94,8.23464701]
[1733672409714,0.7431969,236.95,236.94,8.23464701]
[1733672409922,0.4922169,236.95,236.94,8.23464701]
[1733672411412,0.4922169,236.95,236.88,1.6069]
[1733672411575,0.4922169,236.95,236.91,12.82522363]
[1733672413810,0.12549,236.94,236.91,12.82522363]
[1733672414322,0.25098,236.94,236.9,12.82522363]
[1733672414479,24.027864,236.94,236.88,14.43212363]
[1733672416193,24.027864,236.94,236.89,12.82522363]
[1733672416515,24.027864,236.94,236.9,12.82522363]
[1733672417395,24.027864,236.94,236.89,12.82522363]
[1733672417710,36.85308763,236.94,236.87,12.82522363]
[1733672418011,36.85308763,236.94,236.88,12.82522363]
[1733672418477,0.12549,236.89,236.83,12.82522363]
[1733672418673,23.902374,236.89,236.83,12.82522363]
[1733672419104,36.72759763,236.89,236.82,14.43212363]
[1733672419481,0.12549,236.88,236.82,14.43212363]
[1733672420205,0.12549,236.88,236.84,12.82522363]
[1733672420513,0.12549,236.89,236.84,12.82522363]
[1733672420681,0.12549,236.89,236.85,12.82522363]
[1733672421016,23.902374,236.9,236.84,12.82522363]
[1733672421309,23.902374,236.9,236.86,12.82522363]
[1733672422013,23.902374,236.9,236.87,12.82522363]
[1733672422177,0.12549,236.93,236.88,12.82522363]
[1733672423024,0.25098,236.93,236.88,12.82522363]
[1733672423394,0.12549,236.92,236.88,12.82522363]
[1733672424408,23.902374,236.9,236.84,12.82522363]
[1733672424592,23.902374,236.9,236.82,1.6069]
[1733672424593,0.12549,236.88,236.83,12.82522363]
[1733672424787,23.902374,236.88,236.82,12.82522363]
[1733672425326,23.902374,236.85,236.8,12.82522363]
[1733672425490,23.902374,236.85,236.79,12.82522363]
[1733672425691,23.902374,236.83,236.77,14.43212363]
[1733672425919,23.902374,236.81,236.75,12.82522363]
[1733672426161,23.902374,236.79,236.73,12.82522363]
[1733672426336,23.902374,236.79,236.74,12.82522363]
[1733672426621,23.902374,236.79,236.7,1.5151]
[1733672426622,0.25098,236.74,236.67,12.82522363]
[1733672426823,36.85308763,236.74,236.67,12.82522363]
[1733672427036,24.027864,236.74,236.69,12.82522363]
[1733672427211,0.25098,236.74,236.68,12.82522363]
[1733672428001,0.25098,236.74,236.69,12.82522363]
[1733672428329,0.12549,236.75,236.69,12.82522363]
[1733672428700,36.72759763,236.74,236.67,12.82522363]
[1733672428910,0.12549,236.73,236.67,12.82522363]
[1733672429791,23.902374,236.71,236.65,12.82522363]
[1733672430007,0.12549,236.7,236.65,12.82522363]
[1733672430215,0.12549,236.7,236.64,12.82522363]
[1733672430428,12.95071363,236.7,236.63,12.82522363]
[1733672430639,23.902374,236.71,236.46,6.5151]
[1733672430640,0.25098,236.63,236.46,6.5151]
[1733672430940,0.25098,236.63,236.59,12.82522363]
[1733672430941,24.027864,236.63,236.59,12.82522363]
[1733672431099,23.776884,236.66,236.62,12.82522363]
[1733672431301,23.776884,236.68,236.52,13.45916768]
[1733672431614,23.776884,236.68,236.52,18.45916768]
[1733672431817,0.12549,236.67,236.63,12.82522363]
[1733672432301,0.12549,236.68,236.64,12.82522363]
[1733672432702,0.12549,236.68,236.63,12.82522363]
[1733672432930,0.12549,236.68,236.65,12.82522363]
[1733672433119,0.12549,236.69,236.65,12.82522363]
[1733672433530,0.25098,236.69,236.65,12.82522363]
[1733672433844,0.25098,236.69,236.66,12.82522363]
[1733672434029,6.1784,236.73,236.68,12.82522363]
[1733672434339,6.1784,236.73,236.69,12.82522363]
[1733672434706,0.25098,236.75,236.69,12.82522363]
[1733672434905,0.25098,236.75,236.7,12.82522363]
[1733672435326,0.12549,236.74,236.69,12.82522363]
[1733672435506,24.027864,236.74,236.68,12.82522363]
[1733672435708,0.12549,236.72,236.67,12.82522363]
[1733672435905,23.902374,236.72,236.67,12.82522363]
[1733672436333,23.902374,236.72,236.66,12.82522363]
[1733672436535,23.902374,236.72,236.64,12.82522363]
[1733672436536,0.12549,236.7,236.64,12.82522363]
[1733672436739,23.902374,236.7,236.64,12.82522363]
[1733672437450,0.25098,236.71,236.67,12.82522363]
[1733672437663,0.25098,236.71,236.68,12.82522363]
[1733672437821,0.12549,236.71,236.68,12.82522363]
[1733672439859,0.12549,236.72,236.68,12.82522363]
[1733672440018,0.25098,236.72,236.69,12.82522363]
[1733672440436,0.25098,236.72,236.68,12.82522363]
[1733672440654,0.25098,236.72,236.69,12.82522363]
[1733672440867,9.8154,236.78,236.71,12.82522363]
[1733672441037,9.8154,236.78,236.73,12.82522363]
[1733672441351,12.95071363,236.74,236.67,12.82522363]
[1733672441555,0.12549,236.71,236.66,12.82522363]
[1733672441731,0.12549,236.71,236.65,12.82522363]
[1733672442050,0.12549,236.71,236.66,12.82522363]
[1733672442051,24.027864,236.71,236.66,12.82522363]
[1733672442363,20.0,236.71,236.69,12.82522363]
[1733672442853,0.12549,236.76,236.7,12.82522363]
[1733672443043,0.12549,236.76,236.71,12.82522363]
[1733672443664,13.20169363,236.76,236.7,12.82522363]
[1733672443829,0.25098,236.74,236.69,12.82522363]
[1733672444538,23.776884,236.75,236.72,12.82522363]
[1733672444743,3.29319,236.76,236.71,12.82522363]
[1733672445171,0.12549,236.75,236.7,12.82522363]
[1733672446077,23.902374,236.75,236.7,12.82522363]
[1733672447741,23.902374,236.75,236.71,12.82522363]
[1733672449577,3.29319,236.76,236.74,12.82522363]
[1733672449578,0.12549,236.76,236.74,12.82522363]
[1733672450181,0.25098,236.76,236.74,12.82522363]
[1733672450665,0.25098,236.76,236.73,12.82522363]
[1733672450869,0.12549,236.76,236.73,12.82522363]
[1733672454884,0.12549,236.76,236.71,12.82522363]
[1733672455296,0.12549,236.76,236.72,12.82522363]
[1733672456378,0.25098,236.76,236.71,12.82522363]
[1733672456690,24.027864,236.76,236.71,12.82522363]
[1733672457254,24.027864,236.76,236.71,8.22571933]
[1733672458395,24.027864,236.76,236.72,8.22571933]
[1733672460792,24.027864,236.76,236.73,8.22571933]
[1733672461364,0.12549,236.76,236.75,8.22571933]
[1733672462497,3.1671,236.81,236.75,8.22571933]
[1733672462697,3.1671,236.81,236.78,8.22571933]
[1733672462863,0.12549,236.8,236.78,8.22571933]
[1733672463396,3.1665,236.85,236.79,8.22571933]
[1733672463603,6.4596,236.88,236.83,8.22571933]
[1733672463810,6.4596,236.88,236.76,32.90287732]
[1733672463811,6.4596,236.88,236.82,8.22571933]
[1733672463971,0.25098,236.87,236.82,8.22571933]
[1733672464289,6.4596,236.88,236.83,8.22571933]
[1733672464495,8.22571933,236.9,236.84,8.22571933]
[1733672464682,3.1658,236.91,236.86,8.22571933]
[1733672465057,0.25098,236.9,236.85,8.22571933]
[1733672465996,24.027864,236.9,236.85,8.22571933]
[1733672466775,8.22571933,236.89,236.82,8.22571933]
[1733672466974,23.902374,236.88,236.82,8.22571933]
[1733672467182,23.902374,236.88,236.82,12.84061541]
[1733672467798,23.902374,236.88,236.83,12.84061541]
[1733672467995,24.027864,236.89,236.83,12.84061541]
[1733672468173,24.027864,236.89,236.84,12.84061541]
[1733672468375,0.25098,236.89,236.86,12.84061541]
[1733672470309,0.25098,236.89,236.84,12.84061541]
[1733672470508,0.25098,236.89,236.83,12.84061541]
[1733672471775,0.12549,236.86,236.82,12.84061541]
[1733672471976,0.12549,236.87,236.85,12.84061541]
[1733672472308,0.25098,236.89,236.86,12.84061541]
[1733672473408,0.4922169,236.95,236.88,12.84061541]
[1733672473610,0.4922169,236.95,236.81,1.6366]
[1733672473611,0.4922169,236.95,236.92,12.84061541]
[1733672473913,0.25098,236.94,236.91,12.84061541]
[1733672474122,0.25098,236.94,236.9,12.84061541]
[1733672474408,13.09159541,236.94,236.87,12.84061541]
[1733672474587,0.12549,236.92,236.88,12.84061541]
[1733672475223,0.12549,236.92,236.81,1.6366]
[1733672475224,0.12549,236.92,236.86,12.84061541]
[1733672475432,0.25098,236.9,236.85,12.84061541]
[1733672476023,0.25098,236.9,236.86,12.84061541]
[1733672476319,0.12549,236.91,236.88,12.84061541]
[1733672476513,0.25098,236.91,236.88,12.84061541]
[1733672477100,0.25098,236.91,236.87,12.84061541]
[1733672477591,0.25098,236.91,236.86,12.84061541]
[1733672478222,0.25098,236.91,236.87,12.84061541]
[1733672479694,0.25098,236.91,236.86,12.84061541]
[1733672480226,0.25098,236.91,236.87,12.84061541]
[1733672480902,0.25098,236.91,236.85,12.84061541]
[1733672481929,0.12549,236.87,236.83,12.84061541]
[1733672482421,0.12549,236.87,236.81,12.84061541]
[1733672482799,0.12549,236.87,236.82,12.84061541]
[1733672483030,0.12549,236.87,236.76,14.36641541]
[1733672483031,23.776884,236.89,236.84,12.84061541]
[1733672483521,0.12549,236.88,236.84,12.84061541]
[1733672483820,23.776884,236.89,236.84,12.84061541]
[1733672484910,23.776884,236.89,236.82,12.84061541]
[1733672484911,0.12549,236.88,236.82,12.84061541]
[1733672485420,0.12549,236.88,236.84,12.84061541]
[1733672485837,0.12549,236.88,236.76,14.36641541]
[1733672485838,0.25098,236.88,236.83,12.84061541]
[1733672487725,23.902374,236.86,236.8,12.84061541]
[1733672488812,12.84061541,236.83,236.77,12.84061541]
[1733672489014,23.902374,236.82,236.77,12.84061541]
[1733672489328,23.776884,236.8,236.74,8.22349281]
[1733672489489,32.00037681,236.8,236.74,8.22349281]
[1733672489691,23.776884,236.8,236.74,8.22349281]
[1733672490614,3.29279,236.79,236.73,8.22349281]
[1733672491123,23.776884,236.78,236.73,8.22349281]
[1733672491330,23.776884,236.78,236.74,8.22349281]
[1733672493309,23.776884,236.78,236.75,8.22349281]
[1733672493761,23.776884,236.78,236.74,8.22349281]
[1733672494118,23.776884,236.78,236.77,8.22349281]
[1733672494323,23.776884,236.78,236.75,8.22349281]
[1733672495630,23.776884,236.78,236.74,8.22349281]
[1733672496012,23.902374,236.8,236.74,8.22349281]
[1733672496443,23.902374,236.8,236.7,1.5258]
[1733672496444,0.12549,236.79,236.73,8.22349281]
[1733672496732,27.069574,236.8,236.74,8.22349281]
[1733672497238,27.069574,236.8,236.77,8.22349281]
[1733672498914,27.069574,236.8,236.7,1.5258]
[1733672499250,27.069574,236.8,236.75,8.22349281]
[1733672499630,27.069574,236.8,236.76,8.22349281]
[1733672500320,27.069574,236.8,236.77,8.22349281]
[1733672501296,27.069574,236.8,236.76,8.22349281]
[1733672505851,27.069574,236.8,236.77,8.22349281]
[1733672506170,23.902374,236.8,236.77,8.22349281]
[1733672507169,23.776884,236.8,236.78,8.22349281]
[1733672507464,3.1668,236.84,236.79,8.22349281]
[1733672507767,3.1668,236.84,236.8,8.22349281]
[1733672508160,0.12549,236.83,236.81,8.22349281]
[1733672508646,23.902374,236.83,236.81,8.22349281]
[1733672510269,23.776884,236.83,236.82,8.22349281]
[1733672510440,9.5007,236.88,236.82,8.22349281]
[1733672510441,6.3345,236.88,236.82,8.22349281]
[1733672510643,3.1657,236.92,236.86,8.22349281]
[1733672510946,0.25098,236.91,236.86,8.22349281]
[1733672511767,0.12549,236.9,236.85,8.22349281]
[1733672512596,24.027864,236.91,236.86,8.22349281]
[1733672512903,24.027864,236.91,236.87,8.22349281]
[1733672513606,24.027864,236.91,236.86,8.22349281]
[1733672515489,24.027864,236.91,236.88,8.22349281]
[1733672515876,24.027864,236.91,236.87,8.22349281]
[1733672516101,24.027864,236.91,236.86,8.22349281]
[1733672516323,24.027864,236.91,236.87,8.22349281]
[1733672516469,24.027864,236.91,236.86,8.22349281]
[1733672517511,24.027864,236.91,236.87,8.22349281]
[1733672517803,23.902374,236.91,236.88,8.22349281]
[1733672518377,23.902374,236.91,236.87,8.22349281]
[1733672518698,0.12549,236.9,236.84,8.22349281]
[1733672518893,0.12549,236.88,236.83,8.22349281]
[1733672519065,23.776884,236.87,236.81,8.22349281]
[1733672519271,0.12549,236.84,236.79,9.88709281]
[1733672520115,0.12549,236.84,236.79,8.22349281]
[1733672520307,8.34898281,236.84,236.77,8.22349281]
[1733672520602,23.776884,236.83,236.78,8.22349281]
[1733672521101,23.902374,236.84,236.78,8.22349281]
[1733672522276,32.12586681,236.84,236.77,8.22349281]
[1733672522476,0.12549,236.82,236.76,8.22349281]
[1733672522788,23.902374,236.82,236.76,8.22349281]
[1733672526517,23.902374,236.82,236.77,8.22349281]
[1733672526678,0.12549,236.82,236.78,8.22349281]
[1733672527609,0.12549,236.83,236.78,8.22349281]
[1733672527809,0.12549,236.83,236.77,8.22349281]
[1733672528929,23.776884,236.82,236.77,8.22349281]
[1733672529226,23.776884,236.82,236.78,8.22349281]
[1733672529798,23.776884,236.82,236.76,8.22349281]
[1733672530003,23.776884,236.8,236.74,8.22349281]
[1733672530305,32.00037681,236.8,236.73,9.88709281]
[1733672531111,23.776884,236.8,236.74,8.22349281]
[1733672531837,23.776884,236.78,236.72,8.22349281]
[1733672533123,0.12549,236.77,236.68,20.0]
[1733672533339,0.12549,236.77,236.72,8.22349281]
[1733672534439,0.12549,236.77,236.71,8.22349281]
[1733672534729,0.12549,236.77,236.72,8.22349281]
[1733672536733,0.12549,236.77,236.68,20.0]
[1733672536734,8.22349281,236.75,236.62,1.5601]
[1733672536907,0.12549,236.73,236.62,1.5601]
[1733672537237,23.776884,236.72,236.67,8.22349281]
[1733672537921,23.902374,236.73,236.67,8.22349281]
[1733672538114,23.902374,236.73,236.68,8.22349281]
[1733672538605,23.902374,236.73,236.62,21.5601]
[1733672538807,23.902374,236.73,236.67,8.22349281]
[1733672539409,32.12586681,236.73,236.66,8.22349281]
[1733672540423,23.902374,236.73,236.67,8.22349281]
[1733672541225,23.902374,236.71,236.62,1.5601]
[1733672541539,32.12586681,236.71,236.64,8.22349281]
[1733672542345,23.902374,236.71,236.65,8.22349281]
[1733672542543,23.902374,236.71,236.67,8.22349281]
[1733672542717,23.776884,236.73,236.69,8.22349281]
[1733672543329,0.12549,236.72,236.68,8.22349281]
[1733672545026,0.12549,236.72,236.67,8.22349281]
[1733672545437,32.00037681,236.73,236.62,1.5601]
[1733672545438,23.776884,236.73,236.69,8.22349281]
[1733672545638,3.1675,236.78,236.72,8.22349281]
[1733672545818,3.1675,236.78,236.75,8.22349281]
[1733672546019,6.0489,236.79,236.64,32.89397124]
[1733672546020,6.0489,236.79,236.73,8.22349281]
[1733672546317,14.27239281,236.79,236.73,8.22349281]
[1733672546651,0.25098,236.78,236.73,8.22349281]
[1733672547216,8.47447281,236.78,236.72,8.22349281]
[1733672547417,24.027864,236.78,236.73,8.22349281]
[1733672548643,24.027864,236.78,236.74,8.22349281]
[1733672548849,24.027864,236.78,236.73,8.22349281]
[1733672549852,24.027864,236.78,236.75,8.22349281]
[1733672550055,20.0,236.81,236.76,8.22349281]
[1733672550276,20.0,236.8,236.77,8.22349281]
[1733672551254,44.027864,236.81,236.77,8.22349281]
[1733672552174,44.027864,236.81,236.79,8.22349281]
[1733672552175,0.12549,236.81,236.79,8.22349281]
[1733672552364,11.38999281,236.86,236.79,8.22349281]
[1733672552571,8.22349281,236.85,236.69,0.63346134]
[1733672552863,3.1665,236.86,236.78,8.22349281]
[1733672552864,8.22349281,236.84,236.78,8.22349281]
[1733672553584,0.12549,236.83,236.78,8.22349281]
[1733672554253,0.12549,236.83,236.79,8.22349281]
[1733672555840,0.12549,236.83,236.78,8.22349281]
[1733672556080,23.776884,236.81,236.75,8.22349281]
[1733672556407,23.776884,236.79,236.74,8.22349281]
[1733672557181,8.22349281,236.81,236.74,8.22349281]
[1733672557182,23.776884,236.8,236.74,8.22349281]
[1733672557372,23.776884,236.8,236.75,8.22349281]
[1733672557696,23.776884,236.81,236.75,8.22349281]
[1733672558680,23.902374,236.82,236.77,8.22349281]
[1733672559000,23.902374,236.82,236.68,1.5774]
[1733672559001,23.776884,236.82,236.8,8.22349281]
[1733672561091,23.776884,236.82,236.81,8.22349281]
[1733672561301,23.776884,236.82,236.8,8.22349281]
[1733672564586,23.776884,236.82,236.81,8.22349281]
[1733672564766,11.38979281,236.87,236.81,8.22349281]
[1733672564971,23.776884,236.86,236.81,8.22349281]
[1733672566314,8.47447281,236.85,236.78,8.22349281]
[1733672566602,23.776884,236.84,236.78,8.22349281]
[1733672567104,23.776884,236.84,236.79,8.22349281]
[1733672567412,24.027864,236.85,236.79,8.22349281]
[1733672567589,0.25098,236.85,236.81,8.22349281]
[1733672568411,23.776884,236.86,236.81,8.22349281]
[1733672569490,23.776884,236.86,236.82,8.22349281]
[1733672571501,23.776884,236.86,236.76,34.47137124]
[1733672571502,23.776884,236.86,236.76,1.5774]
[1733672571701,23.776884,236.86,236.81,8.22349281]
[1733672573793,0.25098,236.85,236.79,8.22349281]
[1733672574702,8.22349281,236.84,236.76,1.5774]
[1733672574909,23.776884,236.83,236.77,8.22349281]
[1733672575620,23.776884,236.83,236.78,8.22349281]
[1733672576000,23.776884,236.84,236.78,8.22349281]
[1733672576322,32.00037681,236.81,236.71,6.3851]
[1733672576486,23.776884,236.8,236.74,8.22349281]
[1733672577397,23.776884,236.78,236.73,8.22349281]
[1733672577720,23.776884,236.78,236.74,8.22349281]
[1733672578023,23.902374,236.8,236.74,8.22349281]
[1733672578724,23.902374,236.81,236.75,8.22349281]
[1733672578905,23.776884,236.81,236.77,8.22349281]
[1733672579103,23.776884,236.81,236.7,1.6475]
[1733672579104,23.776884,236.81,236.79,8.22349281]
[1733672579728,4.73158953,236.94,236.7,2.28100079]
[1733672579729,9.6223,236.9,236.8,8.22349281]
[1733672579887,9.6223,236.9,236.84,8.22349281]
[1733672580088,0.25098,236.89,236.85,8.22349281]
[1733672580322,0.25098,236.89,236.84,8.22349281]
[1733672580827,0.25098,236.89,236.83,8.22349281]
[1733672581125,24.027864,236.89,236.83,8.22349281]
[1733672581704,24.027864,236.89,236.84,8.22349281]
[1733672581925,24.027864,236.89,236.85,8.22349281]
[1733672582795,24.027864,236.89,236.84,8.22349281]
[1733672584626,24.027864,236.89,236.85,8.22349281]
[1733672584926,24.027864,236.89,236.86,8.22349281]
[1733672585828,20.0,236.93,236.88,8.22349281]
[1733672585990,20.0,236.92,236.88,8.22349281]
[1733672586192,0.12549,236.91,236.87,8.22349281]
[1733672586602,20.12549,236.91,236.87,8.22349281]
[1733672587034,20.12549,236.91,236.79,21.6475]
[1733672587035,3.1653,236.94,236.89,8.22349281]
[1733672587320,23.776884,236.92,236.89,8.22349281]
[1733672589103,23.776884,236.92,236.79,22.28075472]
[1733672589104,23.776884,236.92,236.88,8.22349281]
[1733672589910,23.776884,236.92,236.89,8.22349281]
[1733672592602,0.4922169,236.95,236.91,8.22349281]
[1733672592801,0.4922169,236.95,236.92,8.22349281]
[1733672593028,0.4922169,236.95,236.93,8.22349281]
[1733672594013,0.12549,236.94,236.93,8.22349281]
[1733672594340,23.902374,236.94,236.93,8.22349281]
[1733672594514,0.12549,236.94,236.93,8.22349281]
[1733672595011,0.12549,236.94,236.92,8.22349281]
[1733672595901,0.25098,236.94,236.92,8.22349281]
[1733672596102,24.027864,236.94,236.9,8.22349281]
[1733672596305,24.027864,236.94,236.91,8.22349281]
[1733672596623,23.902374,236.94,236.91,8.22349281]
[1733672598037,23.902374,236.94,236.92,8.22349281]
[1733672598198,0.4922169,236.95,236.92,8.22349281]
[1733672598706,0.4922169,236.95,236.93,8.22349281]
[1733672599737,0.4922169,236.95,236.92,8.22349281]
[1733672599937,23.902374,236.94,236.9,8.22349281]
[1733672601305,8.34898281,236.93,236.85,1.5644]
[1733672601634,23.902374,236.92,236.87,8.22349281]
[1733672601938,0.25098,236.93,236.89,8.22349281]
[1733672602138,0.12549,236.93,236.89,8.22349281]
[1733672602438,0.12549,236.93,236.9,8.22349281]
[1733672603624,0.25098,236.93,236.9,8.22349281]
[1733672605243,0.25098,236.93,236.89,8.22349281]
[1733672607662,0.25098,236.93,236.85,1.5644]
[1733672607821,0.25098,236.93,236.87,8.22349281]
[1733672608150,0.25098,236.93,236.85,1.5644]
[1733672608151,23.902374,236.91,236.85,8.22349281]
[1733672608315,23.902374,236.91,236.79,20.0]
[1733672608648,23.902374,236.91,236.88,8.22349281]
[1733672608844,23.902374,236.91,236.78,0.63331684]
[1733672608845,23.902374,236.91,236.79,20.0]
[1733672609050,23.902374,236.91,236.87,8.22349281]
[1733672609547,23.902374,236.89,236.79,20.0]
[1733672609725,23.902374,236.87,236.77,1.5119]
[1733672609926,23.902374,236.87,236.81,8.22349281]
[1733672610456,23.902374,236.87,236.82,8.22349281]
[1733672610828,23.902374,236.87,236.83,8.22349281]
[1733672614922,23.902374,236.87,236.84,8.22349281]
[1733672617738,23.902374,236.87,236.85,8.22349281]
[1733672618445,23.902374,236.87,236.86,8.22349281]
[1733672618828,3.1657,236.92,236.86,8.22349281]
[1733672619028,3.1657,236.92,236.77,2.14520413]
[1733672619029,3.1657,236.92,236.89,8.22349281]
[1733672619336,0.12549,236.91,236.89,8.22349281]
[1733672619545,1.8664169,236.95,236.77,2.14520413]
[1733672619546,0.4922169,236.95,236.9,8.22349281]
[1733672619735,0.4922169,236.95,236.91,8.22349281]
[1733672619944,0.25098,236.94,236.91,8.22349281]
[1733672620164,0.4922169,236.95,236.92,8.22349281]
[1733672620326,3.41628,236.94,236.93,8.22349281]
[1733672620527,0.12549,236.93,236.92,8.22349281]
[1733672620726,3.1653,236.94,236.92,8.22349281]
[1733672621363,3.1653,236.94,236.93,8.22349281]
[1733672621561,0.4922169,236.95,236.93,8.22349281]
[1733672621870,0.4922169,236.95,236.94,8.22349281]
[1733672622073,0.6177069,236.95,236.94,8.22349281]
[1733672622432,0.12549,236.94,236.93,8.22349281]
[1733672622955,0.12549,236.94,236.92,8.22349281]
[1733672623335,0.12549,236.94,236.91,8.22349281]
[1733672623531,0.12549,236.94,236.89,8.22349281]
[1733672623768,0.12549,236.94,236.9,8.22349281]
[1733672625036,0.12549,236.94,236.91,8.22349281]
[1733672628299,0.12549,236.94,236.92,8.22349281]
[1733672629298,0.12549,236.94,236.93,8.22349281]
[1733672631187,0.12549,236.94,236.85,20.12549]
[1733672631365,0.12549,236.94,236.9,8.22349281]
[1733672632001,0.12549,236.94,236.91,8.22349281]
[1733672632197,0.12549,236.94,236.93,8.22349281]
[1733672633177,0.12549,236.94,236.92,8.22349281]
[1733672635308,0.12549,236.94,236.93,8.22349281]
[1733672637589,0.12549,236.94,236.92,8.22349281]
[1733672644413,0.12549,236.94,236.93,8.22349281]
[1733672645424,0.12549,236.94,236.92,8.22349281]
[1733672645599,0.12549,236.94,236.9,1.622]
[1733672645800,0.12549,236.94,236.9,9.84549281]
[1733672646716,0.12549,236.94,236.91,8.22349281]
[1733672647030,0.12549,236.94,236.93,8.22349281]
[1733672647206,0.12549,236.94,236.92,8.22349281]
[1733672648728,0.12549,236.94,236.91,8.22349281]
[1733672650600,0.12549,236.94,236.85,20.12549]
[1733672650914,0.12549,236.94,236.89,8.22349281]
[1733672651506,0.12549,236.94,236.9,8.22349281]
[1733672652708,32.25135681,236.94,236.84,1.622]
[1733672653016,23.902374,236.9,236.85,8.22349281]
[1733672653222,0.12549,236.9,236.89,8.22349281]
[1733672653427,0.25098,236.94,236.84,1.622]
[1733672653741,0.12549,236.92,236.86,8.22349281]
[1733672654232,0.12549,236.92,236.87,8.22349281]
[1733672654618,0.12549,236.93,236.87,8.22349281]
[1733672657113,0.12549,236.93,236.88,8.22349281]
[1733672658429,0.12549,236.93,236.89,8.22349281]
[1733672660135,0.12549,236.93,236.88,8.22349281]
[1733672660319,0.12549,236.93,236.84,1.622]
[1733672660527,0.12549,236.91,236.84,1.622]
[1733672660906,0.12549,236.91,236.86,8.22349281]
[1733672661539,23.902374,236.93,236.88,8.22349281]
[1733672663960,23.902374,236.93,236.89,8.22349281]
[1733672665447,0.4922169,236.95,236.9,8.22349281]
[1733672665613,20.0,236.94,236.91,8.22349281]
[1733672666018,0.12549,236.93,236.9,8.22349281]
[1733672666531,20.0,236.94,236.9,0.12549]
[1733672668243,0.12549,236.93,236.89,0.12549]
[1733672668443,0.12549,236.93,236.88,0.12549]
[1733672669121,0.12549,236.93,236.88,8.34898281]
[1733672669630,0.12549,236.93,236.9,0.12549]
[1733672669836,0.12549,236.93,236.89,8.22349281]
[1733672672349,0.12549,236.93,236.88,0.12549]
[1733672673143,0.12549,236.93,236.88,8.34898281]
[1733672673545,3.6575169,236.95,236.88,8.34898281]
[1733672673728,20.0,236.94,236.88,8.34898281]
[1733672674355,20.0,236.94,236.9,8.22349281]
[1733672674934,20.0,236.94,236.81,0.63317089]
[1733672674935,0.12549,236.86,236.78,8.22349281]
[1733672675261,0.12549,236.86,236.81,8.22349281]
[1733672675755,6.6562,236.88,236.83,8.22349281]